fUST/lending_fUST_20250618
["ID","MTS","AMOUNT","RATE_DAILY","PERIOD"]
[366298099,1750179051080,-502.55,0.00024164,6]
[366298101,1750179051090,-460.0,0.00024164,6]
[366298103,1750179051099,-504.68,0.00024164,6]
[366298105,1750179051109,-460.0,0.00024164,6]
[366298107,1750179051118,-2150.05,0.00024164,6]
[366298109,1750179051127,-460.0,0.00024164,6]
[366298110,1750179051136,-319.46499,0.00024164,7]
[366298112,1750179051147,-319.46499,0.00024164,7]
[366298114,1750179051157,-995.22,0.00024164,6]
[366298116,1750179051167,-460.0,0.00024164,6]
[366298118,1750179051176,-6373.84,0.00024164,6]
[366298120,1750179051187,-319.46499,0.00024164,7]
[366298122,1750179051196,-460.0,0.00024164,6]
[366298124,1750179051210,-319.46499,0.00024164,7]
[366298126,1750179051219,-551.4533293,0.00024164,6]
[366298128,1750179051229,-460.0,0.00024164,6]
[366298130,1750179051238,-420.0,0.00024164,6]
[366298132,1750179051247,-540.6,0.00024164,6]
[366298134,1750179051256,-460.0,0.00024164,6]
[366298136,1750179051267,-391.09004202,0.00024164,6]
[366298138,1750179051276,-460.0,0.00024164,6]
[366298140,1750179051286,-1719.87,0.00024164,6]
[366298142,1750179051295,-2444.39108872,0.00024164,6]
[366298233,1750179052217,-460.0,0.00024109,6]
[366298235,1750179052227,-460.0,0.00024109,2]
[366298237,1750179052236,-460.0,0.00024136,2]
[366298238,1750179052246,-193.52891128,0.00024164,6]
[366298241,1750179052256,-388.51313613,0.00024164,6]
[366298243,1750179052273,-91.49686387,0.00024164,6]
[366298245,1750179052283,-460.0,0.00024164,6]
[366298247,1750179052293,-1282.28,0.00024164,6]
[366298249,1750179052303,-1341.67,0.00024164,6]
[366298251,1750179052313,-460.0,0.00024164,6]
[366298253,1750179052323,-1374.79,0.00024164,6]
[366298255,1750179052333,-460.0,0.00024164,6]
[366298257,1750179052343,-460.0,0.00024164,6]
[366298259,1750179052352,-460.0,0.00024164,6]
[366298261,1750179052362,-460.0,0.00024164,6]
[366298263,1750179052373,-460.0,0.00024164,6]
[366298265,1750179052383,-460.0,0.00024164,6]
[366298267,1750179052393,-1002.99,0.00024164,6]
[366298269,1750179052403,-1564.98,0.00024164,6]
[366298271,1750179052413,-151.0,0.00024164,7]
[366298273,1750179052424,-151.0,0.00024164,7]
[366298275,1750179052434,-460.0,0.00024164,6]
[366298277,1750179052446,-460.0,0.00024164,6]
[366298279,1750179052455,-460.0,0.00024164,6]
[366298281,1750179052466,-246.017908,0.00024164,7]
[366298283,1750179052476,-2361.96,0.00024164,6]
[366298285,1750179052491,-460.0,0.00024164,6]
[366298287,1750179052501,-814.58,0.00024164,6]
[366298289,1750179052511,-460.0,0.00024164,6]
[366298291,1750179052520,-460.0,0.00024164,6]
[366298293,1750179052531,-1076.59,0.00024164,6]
[366298295,1750179052541,-460.0,0.00024164,6]
[366298297,1750179052550,-1063.37,0.00024164,6]
[366298299,1750179052560,-460.0,0.00024164,6]
[366298301,1750179052571,-460.0,0.00024164,6]
[366298303,1750179052581,-1830.27,0.00024164,6]
[366298305,1750179052591,-590.65924659,0.00024164,6]
[366298307,1750179052601,-2744.53,0.00024164,6]
[366298309,1750179052611,-8153.97808034,0.00024164,6]
[366298311,1750179052625,-180.85191966,0.00024164,6]
[366298313,1750179052635,-6942.2,0.00024164,6]
[366298315,1750179052645,-9258.13,0.00024164,6]
[366298317,1750179052655,-417.07046084,0.00024164,6]
[366298319,1750179052665,-856.08,0.00024164,6]
[366298321,1750179052676,-1633.03,0.00024164,6]
[366298323,1750179052686,-460.0,0.00024164,6]
[366298325,1750179052698,-4846.17,0.00024164,6]
[366298327,1750179052708,-1338.73,0.00024164,6]
[366298329,1750179052718,-151.0,0.00024164,7]
[366298331,1750179052729,-242.002,0.00024164,7]
[366298333,1750179052741,-606.71,0.00024164,6]
[366298335,1750179052750,-460.0,0.00024164,6]
[366298337,1750179052761,-460.0,0.00024164,6]
[366298339,1750179052772,-8686.86,0.00024164,6]
[366298341,1750179052783,-460.0,0.00024164,6]
[366298343,1750179052793,-460.0,0.00024164,6]
[366298345,1750179052803,-460.0,0.00024164,6]
[366298346,1750179052813,-1544.54,0.00024164,6]
[366298347,1750179052822,-460.0,0.00024164,6]
[366298348,1750179052832,-952.12,0.00024164,6]
[366298349,1750179052842,-2436.24,0.00024164,6]
[366298350,1750179052852,-1167.5,0.00024164,6]
[366298351,1750179052862,-689.81,0.00024164,6]
[366298352,1750179052871,-599.01634866,0.00024164,6]
[366298353,1750179052881,-460.0,0.00024164,6]
[366298354,1750179052890,-460.0,0.00024164,6]
[366298355,1750179052900,-520.02,0.00024164,6]
[366298356,1750179052911,-460.0,0.00024164,6]
[366298358,1750179052920,-460.0,0.00024164,6]
[366298360,1750179052929,-460.0,0.00024164,6]
[366298362,1750179052941,-1035.12,0.00024164,6]
[366298364,1750179052951,-1063.57,0.00024164,6]
[366298366,1750179052961,-460.0,0.00024164,6]
[366298368,1750179052970,-460.0,0.00024164,6]
[366298370,1750179052980,-460.0,0.00024164,6]
[366298372,1750179052990,-3168.7,0.00024164,6]
[366298373,1750179052999,-1948.93,0.00024164,6]
[366298375,1750179053010,-639.44,0.00024164,6]
[366298377,1750179053020,-9003.81,0.00024164,6]
[366298379,1750179053030,-460.0,0.00024164,6]
[366298381,1750179053039,-460.0,0.00024164,6]
[366298383,1750179053049,-318.45,0.00024164,6]
[366298385,1750179053059,-372.64445312,0.00024164,6]
[366298387,1750179053069,-460.0,0.00024164,6]
[366298389,1750179053079,-6910.54,0.00024164,6]
[366298391,1750179053089,-460.0,0.00024164,6]
[366298393,1750179053099,-460.0,0.00024164,6]
[366298395,1750179053110,-460.0,0.00024164,6]
[366298397,1750179053120,-1833.36,0.00024164,6]
[366298399,1750179053130,-460.0,0.00024164,6]
[366298401,1750179053140,-535.66,0.00024164,6]
[366298403,1750179053149,-460.0,0.00024164,6]
[366298405,1750179053160,-460.0,0.00024164,6]
[366298407,1750179053170,-460.0,0.00024164,6]
[366298409,1750179053180,-460.0,0.00024164,6]
[366298411,1750179053191,-1432.49,0.00024164,6]
[366298413,1750179053201,-3928.84,0.00024164,6]
[366298415,1750179053211,-912.64,0.00024164,6]
[366298417,1750179053221,-1566.68,0.00024164,6]
[366298419,1750179053230,-460.0,0.00024164,6]
[366298421,1750179053241,-460.0,0.00024164,6]
[366298424,1750179053252,-3638.23,0.00024164,6]
[366298426,1750179053263,-413.86578855,0.00024164,6]
[366298428,1750179053273,-460.0,0.00024164,6]
[366298430,1750179053284,-460.0,0.00024164,6]
[366298432,1750179053294,-380.28289705,0.00024164,6]
[366298434,1750179053304,-460.0,0.00024164,6]
[366298436,1750179053315,-615.62,0.00024164,6]
[366298438,1750179053324,-460.0,0.00024164,6]
[366298439,1750179053335,-460.0,0.00024164,6]
[366298441,1750179053347,-460.0,0.00024164,6]
[366298444,1750179053358,-460.0,0.00024164,6]
[366298446,1750179053369,-460.0,0.00024164,6]
[366298448,1750179053381,-4138.65,0.00024164,6]
[366298450,1750179053393,-465.66,0.00024164,6]
[366298451,1750179053404,-460.0,0.00024164,6]
[366298453,1750179053415,-614.58639708,0.00024164,6]
[366298455,1750179053426,-1120.82,0.00024164,6]
[366298457,1750179053437,-460.0,0.00024164,6]
[366298459,1750179053452,-2281.14,0.00024164,6]
[366298461,1750179053463,-460.0,0.00024164,6]
[366298463,1750179053473,-9516.28,0.00024164,6]
[366298465,1750179053484,-792.55,0.00024164,6]
[366298467,1750179053499,-1847.59,0.00024164,6]
[366298469,1750179053509,-460.0,0.00024164,6]
[366298471,1750179053519,-775.22,0.00024164,6]
[366298473,1750179053529,-460.0,0.00024164,6]
[366298475,1750179053541,-460.0,0.00024164,6]
[366298478,1750179053552,-475.48,0.00024164,6]
[366298480,1750179053562,-550.44,0.00024164,6]
[366298482,1750179053572,-460.0,0.00024164,6]
[366298484,1750179053582,-302.33935742,0.00024164,6]
[366298486,1750179053592,-460.0,0.00024164,6]
[366298488,1750179053602,-460.0,0.00024164,6]
[366298490,1750179053612,-460.0,0.00024164,6]
[366298492,1750179053621,-1266.5,0.00024164,6]
[366298494,1750179053632,-460.0,0.00024164,6]
[366298496,1750179053641,-460.0,0.00024164,6]
[366298498,1750179053651,-6837.03,0.00024164,6]
[366298500,1750179053661,-460.0,0.00024164,6]
[366298502,1750179053671,-460.0,0.00024164,6]
[366298504,1750179053681,-1325.29,0.00024164,6]
[366298506,1750179053694,-460.0,0.00024164,6]
[366298508,1750179053704,-460.0,0.00024164,6]
[366298510,1750179053713,-680.79,0.00024164,6]
[366298512,1750179053723,-460.0,0.00024164,6]
[366298514,1750179053733,-460.0,0.00024164,6]
[366298516,1750179053742,-460.0,0.00024164,6]
[366298518,1750179053752,-1152.07,0.00024164,6]
[366298519,1750179053762,-460.0,0.00024164,6]
[366298522,1750179053774,-850.82,0.00024164,6]
[366298524,1750179053786,-460.0,0.00024164,6]
[366298526,1750179053795,-1387.06,0.00024164,6]
[366298527,1750179053805,-633.62,0.00024164,6]
[366298530,1750179053815,-460.0,0.00024164,2]
[366298531,1750179053825,-501.18713229,0.00024173,2]
[366298534,1750179053835,-500.0,0.00024173,2]
[366298535,1750179053844,-502.99362773,0.00024173,2]
[366298537,1750179053854,-500.0,0.00024173,2]
[366298539,1750179053863,-500.0,0.00024173,2]
[366298541,1750179053873,-500.0,0.00024173,2]
[366298543,1750179053882,-500.0,0.00024173,2]
[366298545,1750179053892,-167.0679409,0.00024173,2]
[366298547,1750179053901,-600.0,0.00024173,2]
[366298549,1750179053911,-500.0,0.00024173,2]
[366298551,1750179053921,-503.49346312,0.00024173,2]
[366298553,1750179053931,-500.0,0.00024173,2]
[366298555,1750179053943,-500.0,0.00024173,2]
[366298557,1750179053953,-500.0,0.00024173,2]
[366298559,1750179053963,-500.0,0.00024173,2]
[366298561,1750179053973,-440.88775432,0.00024173,2]
[366298563,1750179053984,-516.42244095,0.00024173,2]
[366298566,1750179053994,-503.41899336,0.00024173,2]
[366298568,1750179054004,-500.0,0.00024173,2]
[366298570,1750179054014,-406.0,0.00024185,2]
[366298572,1750179054024,-2125.97,0.00024191,2]
[366298574,1750179054033,-151.0,0.00024191,7]
[366298576,1750179054042,-151.0,0.00024191,7]
[366298578,1750179054051,-151.0,0.00024191,7]
[366298579,1750179054061,-151.0,0.00024191,7]
[366298581,1750179054071,-151.0,0.00024191,7]
[366298583,1750179054081,-186.570147,0.00024191,7]
[366298585,1750179054090,-151.0,0.00024191,7]
[366298587,1750179054100,-151.0,0.00024191,7]
[366298589,1750179054109,-151.0,0.00024191,7]
[366298591,1750179054119,-151.0,0.00024191,7]
[366298593,1750179054129,-151.0,0.00024191,7]
[366298596,1750179054139,-151.0,0.00024191,7]
[366298598,1750179054149,-460.0,0.00024191,6]
[366298600,1750179054159,-460.0,0.00024191,6]
[366298602,1750179054168,-460.0,0.00024191,6]
[366298603,1750179054177,-508.11,0.00024191,6]
[366298606,1750179054187,-168.278017,0.00024191,7]
[366298607,1750179054199,-168.278017,0.00024191,7]
[366298609,1750179054208,-460.0,0.00024191,6]
[366298611,1750179054217,-168.278017,0.00024191,7]
[366298613,1750179054227,-168.278017,0.00024191,7]
[366298615,1750179054237,-460.0,0.00024191,6]
[366298617,1750179054247,-460.0,0.00024191,6]
[366298620,1750179054257,-460.0,0.00024191,6]
[366298633,1750179054268,-151.0,0.00024191,7]
[366298636,1750179054398,-151.0,0.00024191,7]
[366298638,1750179054408,-460.0,0.00024191,6]
[366298640,1750179054418,-558.78621596,0.00024191,6]
[366298642,1750179054427,-576.57480643,0.00024191,6]
[366298644,1750179054437,-156.206301,0.00024191,7]
[366298646,1750179054450,-460.0,0.00024191,6]
[366298648,1750179054460,-156.206301,0.00024191,7]
[366298649,1750179054470,-479.85,0.00024191,6]
[366298651,1750179054480,-460.0,0.00024191,6]
[366298654,1750179054494,-460.0,0.00024191,6]
[366298655,1750179054504,-460.0,0.00024191,6]
[366298657,1750179054513,-344.97821184,0.00024191,6]
[366298660,1750179054523,-460.0,0.00024191,6]
[366298662,1750179054533,-512.42181919,0.00024191,6]
[366298664,1750179054542,-460.0,0.00024191,6]
[366298666,1750179054552,-170.0,0.00024191,6]
[366298668,1750179054562,-460.0,0.00024191,6]
[366298669,1750179054572,-460.0,0.00024191,6]
[366298671,1750179054581,-460.0,0.00024191,6]
[366298673,1750179054591,-460.0,0.00024191,6]
[366298676,1750179054601,-151.0,0.00024191,2]
[366298678,1750179054611,-151.0,0.00024191,2]
[366298680,1750179054620,-460.0,0.00024191,6]
[366298682,1750179054630,-198.985511,0.00024191,2]
[366298684,1750179054640,-772.44,0.00024191,6]
[366298686,1750179054652,-460.0,0.00024191,6]
[366298687,1750179054662,-460.0,0.00024191,6]
[366298689,1750179054672,-460.0,0.00024191,6]
[366298691,1750179054682,-460.0,0.00024191,6]
[366298693,1750179054694,-460.0,0.00024191,6]
[366298696,1750179054703,-460.0,0.00024191,6]
[366298698,1750179054713,-460.0,0.00024191,6]
[366298700,1750179054723,-934.22,0.00024191,6]
[366298702,1750179054732,-460.0,0.00024191,6]
[366298704,1750179054742,-460.0,0.00024191,6]
[366298706,1750179054752,-460.0,0.00024191,6]
[366298708,1750179054762,-460.0,0.00024191,6]
[366298710,1750179054771,-1619.21,0.00024191,6]
[366298712,1750179054781,-1345.7,0.00024191,6]
[366298714,1750179054790,-580.5,0.00024191,6]
[366298716,1750179054800,-460.0,0.00024191,6]
[366298718,1750179054809,-460.0,0.00024191,6]
[366298720,1750179054819,-460.0,0.00024191,6]
[366298722,1750179054827,-460.0,0.00024191,6]
[366298723,1750179054838,-460.0,0.00024191,6]
[366298725,1750179054847,-460.0,0.00024191,6]
[366298728,1750179054857,-460.0,0.00024191,6]
[366298729,1750179054866,-460.0,0.00024191,6]
[366298732,1750179054876,-588.03,0.00024191,6]
[366298734,1750179054888,-460.0,0.00024191,6]
[366298736,1750179054897,-460.0,0.00024191,6]
[366298738,1750179054907,-404.35704521,0.00024191,6]
[366298740,1750179054916,-460.0,0.00024191,6]
[366298742,1750179054925,-460.0,0.00024191,6]
[366298744,1750179054935,-460.0,0.00024191,6]
[366298746,1750179054945,-547.081886,0.00024191,6]
[366298748,1750179054954,-460.0,0.00024191,6]
[366298750,1750179054963,-460.0,0.00024191,6]
[366298752,1750179054973,-151.0,0.00024191,6]
[366298754,1750179054982,-151.0,0.00024191,6]
[366298756,1750179054992,-207.11734642,0.00024191,6]
[366298758,1750179055001,-460.0,0.00024191,6]
[366298760,1750179055010,-460.0,0.00024191,6]
[366298762,1750179055019,-220.0,0.00024191,6]
[366298764,1750179055028,-460.0,0.00024191,6]
[366298766,1750179055037,-485.65551284,0.00024191,6]
[366298768,1750179055047,-460.0,0.00024191,6]
[366298770,1750179055056,-460.0,0.00024191,6]
[366298772,1750179055066,-460.0,0.00024191,6]
[366298774,1750179055076,-630.32,0.00024191,6]
[366298776,1750179055086,-460.0,0.00024191,6]
[366298778,1750179055096,-516.29511748,0.00024191,6]
[366298780,1750179055105,-474.93,0.00024191,6]
[366298782,1750179055114,-560.74,0.00024191,6]
[366298784,1750179055124,-460.0,0.00024191,6]
[366298786,1750179055134,-634.35,0.00024191,6]
[366298788,1750179055143,-460.0,0.00024191,6]
[366298790,1750179055153,-460.0,0.00024191,6]
[366298792,1750179055163,-151.0,0.00024191,7]
[366298794,1750179055172,-151.0,0.00024191,7]
[366298796,1750179055181,-460.0,0.00024191,6]
[366298798,1750179055192,-460.0,0.00024191,6]
[366298800,1750179055201,-500.0,0.00024191,6]
[366298802,1750179055211,-1575.2,0.00024191,6]
[366298804,1750179055220,-460.0,0.00024191,6]
[366298806,1750179055229,-880.65,0.00024191,6]
[366298808,1750179055239,-460.0,0.00024191,6]
[366298810,1750179055248,-460.0,0.00024191,6]
[366298812,1750179055257,-638.02,0.00024191,6]
[366298814,1750179055266,-460.0,0.00024191,6]
[366298816,1750179055275,-460.0,0.00024191,6]
[366298818,1750179055285,-460.0,0.00024191,6]
[366298820,1750179055294,-460.0,0.00024191,6]
[366298822,1750179055303,-483.35,0.00024191,6]
[366298824,1750179055312,-460.0,0.00024191,6]
[366298826,1750179055322,-151.0,0.00024191,7]
[366298828,1750179055331,-460.0,0.00024191,6]
[366298830,1750179055340,-166.07256633,0.00024191,6]
[366298832,1750179055349,-151.0,0.00024191,6]
[366298834,1750179055358,-460.0,0.00024191,6]
[366298836,1750179055367,-500.0,0.00024191,6]
[366298838,1750179055376,-517.96,0.00024191,6]
[366298840,1750179055385,-151.0,0.00024191,6]
[366298841,1750179055394,-460.0,0.00024191,6]
[366298843,1750179055403,-151.0,0.00024191,6]
[366298845,1750179055413,-151.0,0.00024191,7]
[366298847,1750179055422,-151.0,0.00024191,7]
[366298849,1750179055431,-151.0,0.00024191,6]
[366298851,1750179055444,-674.52,0.00024191,6]
[366298853,1750179055454,-460.0,0.00024191,6]
[366298856,1750179055463,-502.55,0.00024191,6]
[366298858,1750179055475,-318.37662595,0.00024191,6]
[366298859,1750179055485,-504.68,0.00024191,6]
[366298861,1750179055496,-460.0,0.00024191,6]
[366298863,1750179055505,-460.0,0.00024191,6]
[366298865,1750179055515,-319.46499,0.00024191,7]
[366298868,1750179055525,-460.0,0.00024191,6]
[366298869,1750179055535,-319.46499,0.00024191,7]
[366298871,1750179055544,-6373.84,0.00024191,6]
[366298873,1750179055553,-561.54000176,0.00024191,6]
[366298875,1750179055563,-319.46499,0.00024191,7]
[366298877,1750179055573,-319.46499,0.00024191,7]
[366298879,1750179055583,-460.0,0.00024191,6]
[366298881,1750179055592,-540.6,0.00024191,6]
[366298883,1750179055601,-470.67172511,0.00024191,6]
[366298885,1750179055612,-460.0,0.00024191,6]
[366298887,1750179055622,-1719.87,0.00024191,6]
[366298889,1750179055631,-2637.92,0.00024191,6]
[366298891,1750179055641,-460.0,0.00024191,6]
[366298893,1750179055651,-480.01,0.00024191,6]
[366298895,1750179055661,-1341.67,0.00024191,6]
[366298897,1750179055670,-1282.28,0.00024191,6]
[366298899,1750179055680,-331.03,0.00024191,6]
[366298900,1750179055689,-1374.79,0.00024191,6]
[366298902,1750179055701,-460.0,0.00024191,6]
[366298904,1750179055711,-460.0,0.00024191,6]
[366298906,1750179055721,-460.0,0.00024191,6]
[366298908,1750179055732,-460.0,0.00024191,6]
[366298910,1750179055742,-460.0,0.00024191,6]
[366298913,1750179055753,-460.0,0.00024191,6]
[366298915,1750179055763,-1002.99,0.00024191,6]
[366298917,1750179055774,-1564.98,0.00024191,6]
[366298918,1750179055784,-151.0,0.00024191,7]
[366298920,1750179055794,-151.0,0.00024191,7]
[366298922,1750179055803,-460.0,0.00024191,6]
[366298924,1750179055813,-460.0,0.00024191,6]
[366298926,1750179055823,-460.0,0.00024191,6]
[366298928,1750179055832,-2361.96,0.00024191,6]
[366298930,1750179055842,-460.0,0.00024191,6]
[366298932,1750179055852,-814.58,0.00024191,6]
[366298934,1750179055862,-460.0,0.00024191,6]
[366298936,1750179055871,-460.0,0.00024191,6]
[366298938,1750179055881,-1076.59,0.00024191,6]
[366298940,1750179055890,-460.0,0.00024191,6]
[366298942,1750179055899,-1063.37,0.00024191,6]
[366298944,1750179055908,-460.0,0.00024191,6]
[366298946,1750179055918,-460.0,0.00024191,6]
[366298948,1750179055927,-1830.27,0.00024191,6]
[366298950,1750179055938,-2744.53,0.00024191,6]
[366298952,1750179055950,-8334.83,0.00024191,6]
[366298954,1750179055959,-6942.2,0.00024191,6]
[366298956,1750179055968,-9258.13,0.00024191,6]
[366298958,1750179055978,-856.08,0.00024191,6]
[366298959,1750179055986,-1633.03,0.00024191,6]
[366298961,1750179055996,-460.0,0.00024191,6]
[366298963,1750179056006,-4846.17,0.00024191,6]
[366298965,1750179056017,-1338.73,0.00024191,6]
[366298967,1750179056027,-460.0,0.00024191,6]
[366298969,1750179056036,-460.0,0.00024191,6]
[366298971,1750179056046,-8686.86,0.00024191,6]
[366298973,1750179056055,-460.0,0.00024191,6]
[366298975,1750179056064,-460.0,0.00024191,6]
[366298977,1750179056073,-563.99059988,0.00024191,6]
[366298979,1750179056083,-1544.54,0.00024191,6]
[366298981,1750179056092,-460.0,0.00024191,6]
[366298983,1750179056101,-952.12,0.00024191,6]
[366298985,1750179056110,-2436.24,0.00024191,6]
[366298987,1750179056119,-1167.5,0.00024191,6]
[366298989,1750179056129,-689.81,0.00024191,6]
[366298991,1750179056138,-153.80410712,0.00024191,6]
[366298993,1750179056149,-151.0,0.00024191,6]
[366298995,1750179056158,-151.0,0.00024191,6]
[366298996,1750179056167,-460.0,0.00024191,6]
[366298998,1750179056177,-151.0,0.00024191,6]
[366299000,1750179056186,-168.41401069,0.00024191,6]
[366299002,1750179056198,-460.0,0.00024191,6]
[366299004,1750179056208,-151.0,0.00024191,6]
[366299006,1750179056217,-520.02,0.00024191,6]
[366299008,1750179056227,-460.0,0.00024191,6]
[366299010,1750179056236,-153.12028331,0.00024191,6]
[366299012,1750179056246,-460.0,0.00024191,6]
[366299014,1750179056255,-154.8265774,0.00024191,6]
[366299016,1750179056265,-1035.12,0.00024191,6]
[366299018,1750179056274,-460.0,0.00024191,6]
[366299020,1750179056286,-1063.57,0.00024191,6]
[366299022,1750179056295,-460.0,0.00024191,6]
[366299024,1750179056304,-460.0,0.00024191,6]
[366299026,1750179056314,-460.0,0.00024191,6]
[366299028,1750179056323,-3168.7,0.00024191,6]
[366299030,1750179056332,-1948.93,0.00024191,6]
[366299032,1750179056341,-639.44,0.00024191,6]
[366299034,1750179056350,-9003.81,0.00024191,6]
[366299036,1750179056359,-460.0,0.00024191,6]
[366299038,1750179056369,-460.0,0.00024191,6]
[366299040,1750179056378,-460.0,0.00024191,6]
[366299041,1750179056388,-6910.54,0.00024191,6]
[366299043,1750179056397,-460.0,0.00024191,6]
[366299045,1750179056406,-460.0,0.00024191,6]
[366299047,1750179056416,-460.0,0.00024191,6]
[366299049,1750179056425,-1833.36,0.00024191,6]
[366299051,1750179056435,-160.0,0.00024191,7]
[366299053,1750179056449,-460.0,0.00024191,6]
[366299055,1750179056458,-535.66,0.00024191,6]
[366299057,1750179056468,-460.0,0.00024191,6]
[366299059,1750179056478,-460.0,0.00024191,6]
[366299061,1750179056488,-460.0,0.00024191,6]
[366299063,1750179056501,-460.0,0.00024191,6]
[366299065,1750179056510,-1199.6986817,0.00024191,6]
[366299068,1750179056528,-232.7913183,0.00024191,6]
[366299070,1750179056538,-3928.84,0.00024191,6]
[366299072,1750179056547,-864.63821569,0.00024191,6]
[366299074,1750179056563,-48.00178431,0.00024191,6]
[366299076,1750179056574,-658.59585072,0.00024191,6]
[366299078,1750179056588,-908.08414928,0.00024191,6]
[366299080,1750179056597,-460.0,0.00024191,6]
[366299082,1750179056608,-460.0,0.00024191,6]
[366299084,1750179056619,-3638.23,0.00024191,6]
[366299086,1750179056628,-460.0,0.00024191,6]
[366299088,1750179056640,-151.0,0.00024191,6]
[366299090,1750179056649,-151.0,0.00024191,6]
[366299092,1750179056659,-460.0,0.00024191,6]
[366299094,1750179056668,-460.0,0.00024191,6]
[366299096,1750179056678,-615.62,0.00024191,6]
[366299098,1750179056688,-460.0,0.00024191,6]
[366299100,1750179056702,-460.0,0.00024191,6]
[366299102,1750179056712,-460.0,0.00024191,6]
[366299104,1750179056722,-510.95018045,0.00024191,6]
[366299106,1750179056732,-460.0,0.00024191,6]
[366299108,1750179056742,-3557.00138144,0.00024191,6]
[366303733,1750179875101,415.312302,0.00013699,2]
[366303734,1750179994908,-150.0,0.0001904,2]
[366303735,1750180149151,-150.26498568,0.00019034,2]
[366303837,1750180235601,-5000.0,0.00018844,2]
[366303839,1750180235613,-62.5641594,0.00019034,2]
[366303840,1750180235622,-1052.10752084,0.00019621,10]
[366303841,1750180235634,-2519.10359646,0.00019621,10]
[366303842,1750180235643,-300.0,0.00019621,2]
[366303843,1750180235653,-300.0,0.00019621,2]
[366303844,1750180235662,-7282.3952044,0.00019622,2]
[366303845,1750180235673,-415.312302,0.00020187,2]
[366303846,1750180235682,-175.713419,0.00020225,2]
[366303847,1750180235692,-202.60405416,0.000207,3]
[366303848,1750180235701,-202.60405415,0.000207,3]
[366303849,1750180235711,-202.60405415,0.000207,3]
[366303850,1750180235720,-202.60405415,0.000207,3]
[366303851,1750180235729,-202.60405415,0.000209,4]
[366303852,1750180235739,-202.60405415,0.0002115,4]
[366303853,1750180235748,-227.0,0.00021374,2]
[366303854,1750180235757,-253.0,0.00021374,2]
[366303855,1750180235767,-202.60405415,0.000214,5]
[366303856,1750180235777,-202.60405415,0.0002165,5]
[366303857,1750180235787,-202.60405415,0.000219,6]
[366303858,1750180235797,-207.4,0.00021987,2]
[366303859,1750180235807,-160.0,0.00021988,2]
[366303860,1750180235817,-183.443,0.00021991,2]
[366303861,1750180235826,-157.99040466,0.00021999,2]
[366303862,1750180235836,-500.0,0.00021999,2]
[366303863,1750180235848,-183.23720187,0.00021999,2]
[366303864,1750180235857,-500.0,0.00021999,2]
[366303865,1750180235868,-182.92489012,0.00021999,2]
[366303866,1750180235878,-500.93412657,0.00021999,2]
[366303867,1750180235890,-20978.95039824,0.00022,2]
[366303869,1750180235906,-35606.94083544,0.00022,2]
[366303907,1750180238296,-10212.18960033,0.00022,2]
[366303914,1750180238351,-1208.81337852,0.00022,2]
[366303916,1750180238363,-213.39869953,0.00022022,2]